Cogmind - Beta 13 @@@ ROGUE MODE // 2024.04.08 @ 23:37:29 Player: Tenderz Result: Destroyed by G-34 Mercenary with Small Laser Performance ------------- Evolutions (0) 0 Regions Visited (2) 400 Robots Destroyed (20) 100 Value Destroyed (472) 472 Prototype IDs (0) 0 Alien Tech Used (0) 0 Bonus (0) 0 TOTAL SCORE: 972 Bonus ------- None Cogmind --------- Core Integrity 0/250 Matter 198/300 Energy 125/125 System Corruption 0% Temperature Cool (6) Movement Walking (120) Location -10/Mines Parts ------- > --- POWER (1) -------- Light Ion Engine > --- PROPULSION (2) --- Aluminum Leg Aluminum Leg > --- UTILITY (2) ------ ECM Suite Weapon Shielding > --- WEAPON (2) ------- Assault Rifle Light Assault Rifle > --- INVENTORY (5) ---- Heat Sink Huge Storage Unit Medium Matter Pod (0) Sensor Array Light Assault Rifle Peak State ------------ > --- POWER ------------ Light Ion Engine > --- PROPULSION ------- Aluminum Leg Aluminum Leg > --- UTILITY ---------- Huge Storage Unit Terrain Scanner > --- WEAPON ----------- Assault Rifle Light Assault Rifle > --- INVENTORY -------- Light Assault Rifle Grenade Launcher [Rating: 7] Favorites ----------- Power Light Ion Engine Engine Light Ion Engine Propulsion Aluminum Leg Leg Aluminum Leg Utility ECM Suite Device ECM Suite Storage Huge Storage Unit Protection Weapon Shielding Weapon Light Assault Rifle Energy Gun EM Pulse Gun Ballistic Gun Light Assault Rifle Launcher Grenade Launcher Build | -11 -10 -10 ------- Run | Yrd Mat Min Slots Evolved . | . . . Power . | . . . Propulsion . | . . . Utility . | . . . Weapon . | . . . Parts Attached 31 | 5 24 2 Power 6 | 1 4 1 Engine 6 | 1 4 1 Core . | . . . Reactor . | . . . Propulsion 8 | 2 6 . Treads . | . . . Leg 8 | 2 6 . Wheel . | . . . Hover . | . . . Flight . | . . . Utility 7 | . 7 . Device 4 | . 4 . Storage 2 | . 2 . Processor . | . . . Hackware . | . . . Protection 1 | . 1 . Artifact . | . . . Weapon 10 | 2 7 1 Energy Gun 1 | . 1 . Energy Cannon . | . . . Ballistic Gun 8 | 2 5 1 Ballistic Cannon . | . . . Launcher 1 | . 1 . Special Weapon . | . . . Impact Weapon . | . . . Slashing Weapon . | . . . Piercing Weapon . | . . . Special Melee Weapon . | . . . Unidentified Prototypes . | . . . Parts Lost 6 | . 6 . Power 3 | . 3 . Propulsion . | . . . Utility 1 | . 1 . Weapon 2 | . 2 . Highest Loss Streak 2 | . 2 . To Critical Strikes . | . . . Average Slot Usage (%) 97 | . 95 100 Engine 13 | . 13 14 Leg 28 | . 28 28 Device 19 | . 23 14 Protection 5 | . . 14 Ballistic Gun 26 | . 25 28 Launcher 1 | . 1 . Naked Turns . | . . . Heaviest Build 90 | 6 90 9 Greatest Support 20 | 20 20 20 Greatest Overweight (x) 4 | . 4 . Average Overweight (x) . | . . . Largest Inventory Capacity 25 | 5 25 5 Average Capacity 5 | 5 6 5 Most Carried 7 | 3 7 5 Average Carried 4 | . 4 5 Final Capacity 5 | 5 5 5 Final Carried 5 | 1 5 5 Class Distribution -------------------- 54% | Mutant 45% | Scavenger-Mutant Dominant Class ---------------- Mutant | -10/Materials Scavenger-Mutant | -10/Mines Resources | -11 -10 -10 ----------- Run | Yrd Mat Min Matter Collected 629 | 197 333 99 Remotely . | . . . Salvage Created 659 | 45 421 193 Parts 33 | . 29 4 Haulers Intercepted . | . . . Recyclers Shooed 3 | . . 3 Parts Field Recycled . | . . . Retrieved Matter . | . . . Parts Self-Destructed . | . . . Prevented . | . . . Kills | -11 -10 -10 ------- Run | Yrd Mat Min Combat Hostiles Destroyed 17 | 1 13 3 Guns 15 | 1 11 3 AOE 2 | . 2 . Classes Destroyed 4 | 1 2 1 Recycler 2 | . . 2 Watcher 1 | . 1 . Swarmer 6 | . 3 3 Grunt 11 | 1 10 . Best Kill Streak 3 | 1 2 3 Combat Bots Only 3 | 1 2 3 Max Kills in Single Turn 2 | 1 2 2 Gunslinging 1 | . . 1 Exploded 2 | . 2 . Melee . | . . . Uniques/NPCs Destroyed . | . . . Combat | -11 -10 -10 -------- Run | Yrd Mat Min Hostile Shots Fired 150 | 5 125 20 Missed 58 | 4 45 9 Damage Taken 1134 | 12 1027 95 Core 253 | . 220 33 Absorbed by Shields . | . . . Redirected to Shielding 11 | . 3 8 Core Remaining (%) 100 | 100 . . Volleys Fired 72 | 2 47 23 Largest 2 | 2 2 2 Hottest 70 | 40 70 40 Shots Fired 142 | 4 92 46 Gun 140 | 4 90 46 Cannon . | . . . Launcher 2 | . 2 . Special . | . . . Kinetic 137 | 4 87 46 Thermal . | . . . Explosive 2 | . 2 . Electromagnetic 3 | . 3 . Robot Hit Streak 8 | 3 8 5 Robot Miss Streak 8 | . 8 3 Penetration Max . | . . . Secondary Targets 2 | . 1 1 Max Gunslinging Chain 1 | . 1 1 Shots Hit Robots 74 | 3 47 24 Core Hits 34 | 2 23 9 Critical Kills 2 | . 1 1 Critical Parts Destroyed . | . . . Critical Strikes 2 | . 1 1 Destroy 2 | . 1 1 Melee Attacks . | . . . Impact . | . . . Slashing . | . . . Piercing . | . . . Sneak Attacks . | . . . Combat Hostiles . | . . . Follow-up Attacks . | . . . Damage Inflicted 1223 | 39 908 276 Guns 773 | 36 466 271 Cannons . | . . . Explosions 442 | . 442 . Melee . | . . . Ramming 8 | 3 . 5 Kinetic 732 | 36 425 271 Thermal 26 | . 26 . Explosive 416 | . 416 . Electromagnetic 41 | . 41 . Impact . | . . . Slashing . | . . . Piercing . | . . . Highest Corruption . | . . . Average Corruption . | . . . Corruption Purged . | . . . Corruption Blocked . | . . . Overload Shots . | . . . Overflow Damage 123 | . 123 . Projectiles . | . . . Explosions 123 | . 123 . Melee . | . . . Knockbacks . | . . . Impact . | . . . Kinetic . | . . . Secondary . | . . . Self-Inflicted Damage 106 | . 106 . Shots 2 | . 2 . Rammed . | . . . Targets Rammed 3 | 1 1 1 Kicked 3 | 1 1 1 Crushed . | . . . Highest Temperature 27 | . 27 . Average Temperature 9 | . 9 . Received Heat Transfer 399 | 6 375 18 Siege Activations . | . . . Robots Corrupted . | . . . Combat Hostiles . | . . . Parts Fried . | . . . Impact Corruptions . | . . . Robots Melted . | . . . Combat Hostiles . | . . . Parts Melted . | . . . Heat Transferred 50 | . 50 . Parts Sabotaged . | . . . Parts Stolen . | . . . Parts Stripped . | . . . Power Chain Reactions 1 | . 1 . Alert | -11 -10 -10 ------- Run | Yrd Mat Min Peak Influence 198 | 20 198 103 Initial 28 | . 13 28 Average 65 | 3 69 72 Maximum Alert Level . | . . . Low Security (%) 100 | 100 100 100 Level 1 . | . . . Level 2 . | . . . Level 3 . | . . . Level 4 . | . . . Level 5 . | . . . High Security . | . . . Max Security . | . . . Squads Dispatched 6 | . 5 1 Investigation 4 | . 3 1 Extermination . | . . . Reinforcement 2 | . 2 . Assault . | . . . Garrison . | . . . Intercept . | . . . Searches Triggered . | . . . Construction Impeded . | . . . Haulers Reinforced . | . . . Active Scanning Responses . | . . . Cargo Convoy Interrupts . | . . . Stealth | -11 -10 -10 --------- Run | Yrd Mat Min Distress Signals 2 | . 2 . Communications Jammed . | . . . Distress Signals . | . . . Times Spotted 41 | 1 33 7 Peak Tracking Total 4 | 1 4 3 Tactical Retreats 4 | . 3 1 Traps | -11 -10 -10 ------- Run | Yrd Mat Min Traps Triggered 1 | . 1 . Indirectly . | . . . Trap Hack Attempts . | . . . Triggered . | . . . Disarmed . | . . . Reprogrammed . | . . . Reused . | . . . Traps Extracted . | . . . Installed . | . . . Triggered . | . . . Machines | -11 -10 -10 ---------- Run | Yrd Mat Min Machines Disabled 1 | . 1 . Max in Single Turn 1 | . 1 . Machines Repaired . | . . . Machines Dismantled . | . . . Machines Sabotaged . | . . . Overloaded Fab Kills . | . . . Hacking | -11 -10 -10 --------- Run | Yrd Mat Min Machines Accessed 6 | . 5 1 Terminals 4 | . 4 . Fabricators . | . . . Repair Stations . | . . . Recycling Units 1 | . 1 . Scanalyzers . | . . . Garrison Access . | . . . Total Hacks 15 | . 14 1 Successful 10 | . 9 1 Failed 5 | . 5 . Catastrophic 1 | . 1 . Database Lockouts . | . . . Manual . | . . . Terminals 12 | . 12 . Fabricators . | . . . Repair Stations . | . . . Recycling Units 2 | . 2 . Scanalyzers . | . . . Garrison Access . | . . . Terminal Hacks 8 | . 7 1 Open Door 1 | . . 1 Branch Access Points 1 | . 1 . Unreport Threat 2 | . 2 . Dispatch Records 1 | . 1 . Transport Status 1 | . 1 . Hauler Manifests 1 | . 1 . Zone Layout 1 | . 1 . Fabricator Hacks . | . . . Repair Station Hacks . | . . . Recycling Unit Hacks 2 | . 2 . Report Inventory 1 | . 1 . Retrieve Components 1 | . 1 . Scanalyzer . | . . . Garrison Access Hacks . | . . . Unauthorized Hacks . | . . . Terminals . | . . . Fabricators . | . . . Repair Stations . | . . . Recycling Units . | . . . Scanalyzers . | . . . Garrison Access . | . . . Data Cores Recovered . | . . . Used . | . . . Hacking Detections 3 | . 3 . Full Trace Events 2 | . 2 . Feedback Events . | . . . Feedback Blocked . | . . . Robot Schematics Acquired . | . . . Robots Built . | . . . Authchips . | . . . Time . | . . . Total Robot Build Rating . | . . . Part Schematics Acquired . | . . . Parts Built . | . . . Authchips . | . . . Time . | . . . Total Part Build Rating . | . . . Parts Repaired . | . . . Time . | . . . Parts Recycled . | . . . Recycled Matter . | . . . Retrieved Matter . | . . . Retrieved Components 3 | . 3 . Parts Scanalyzed . | . . . Part Schematics Acquired . | . . . Parts Damaged . | . . . Bothacking | -11 -10 -10 ------------ Run | Yrd Mat Min Used RIF Installer . | . . . Robots Hacked . | . . . Non-combat . | . . . Combat . | . . . Robot Hacks Applied . | . . . Relay Couplers Released . | . . . Fabnet Peak Effective % . | . . . Robots Rewired . | . . . Allies Hacked . | . . . Hacks Repelled . | . . . Allies | -11 -10 -10 -------- Run | Yrd Mat Min Total Allies . | . . . Largest Group . | . . . Highest-Rated Group . | . . . Highest-Rated Ally . | . . . Total Orders . | . . . Ally Attacks . | . . . Total Damage . | . . . Kills . | . . . Allies Corrupted . | . . . Allies Melted . | . . . Intel | -11 -10 -10 ------- Run | Yrd Mat Min Robot Analysis Total . | . . . Derelict Logs Recovered 1 | . . 1 Drone Launches . | . . . Drone Recoveries . | . . . Exploration | -11 -10 -10 ------------- Run | Yrd Mat Min Turns Passed 1307 | 107 720 480 Spaces Moved 789 | 80 409 300 Core 24 | 24 . . Treads . | . . . Legs 765 | 56 409 300 Wheels . | . . . Hover . | . . . Flight . | . . . Fastest Speed 50 | 50 120 120 Average Speed 120 | 99 125 120 Slowest Speed 400 | 120 400 120 Overloaded Moves . | . . . Propulsion Burnouts . | . . . Robots Hopped . | . . . Cave-ins Triggered . | . . . Exploration Rate (%) 41 | 6 48 71 Regions Visited 2 Branch Regions 1 Pre-discovered Areas . | . . . Known Exits Taken 1 | . 1 . Unknown Exits Taken 1 | 1 . . Scrap Searched . | . . . Spaces Dug . | . . . Terrain Destroyed 43 | . 43 . Melee . | . . . Projectile . | . . . AOE 43 | . 43 . Terrain Rammed . | . . . Walls Destroyed . | . . . Machines Disabled . | . . . Actions | -11 -10 -10 --------- Run | Yrd Mat Min Total 1020 | 103 537 380 Wait 87 | 9 26 52 Move 787 | 79 408 300 Hop . | . . . Pick Up 21 | 4 17 . Fast Attach 8 | 5 3 . Attach 6 | . 6 . Detach 1 | . 1 . Swap 17 | . 15 2 Drop 18 | 3 13 2 Fire 72 | 2 47 23 Melee . | . . . Ram . | . . . Kick 3 | 1 1 1 Crush . | . . . Escape Stasis . | . . . Rewire . | . . . Trap . | . . . Miscellaneous . | . . . Route ------- -11/Scrapyard -10/Materials (discovered 2 exits: [*Mat] / *Min) -10/Mines (discovered 2 exits: [*Mat x2]) History --------- Turn | Location | Event 2 | -11/Scrapyard | Met Revision 17 68 | -11/Scrapyard | Discovered new exit (range 8) 108 | -11/Scrapyard | Entered Materials 173 | -10/Materials | Identified exit to Mines 308 | -10/Materials | Build established: Mutant 472 | -10/Materials | Core integrity fell below 50% 508 | -10/Materials | Discovered new exit (range 10) 825 | -10/Materials | Core integrity fell below 20% 828 | -10/Materials | Entered Mines 837 | -10/Mines | Learned Materials terminal intel 969 | -10/Mines | Discovered new exit (range 9) 1054 | -10/Mines | Build established: Scavenger-Mutant 1277 | -10/Mines | Discovered new exit (range 16) 1287 | -10/Mines | Met a Derelict shopkeep closing up shop 1308 | -10/Mines | Destroyed by G-34 Mercenary with Small Laser Last Messages --------------- R-06 Scavenger destroyed. Kicked U-05 Engineer. K-01 Serf collects debris. R-06 Scavenger destroyed. Dropped Lgt. Ion Engine. Acquired 89 matter. Dropped Assault Rifle. EXIT=FOUND Connecting with SHOP.Sys... >>Open Door Sealed Doors opened. NC-7IJ(g): "Sorry, the Unaware have moved into these parts and I'm closing up shop. No more sales from me!" ALERT: Derelict activity detected in mines. Dispatching investigation squad. NC-7IJ(g): "You've got to be kidding me! I'm outta here..." G-34 Mercenary heat damages Aluminum Leg. G-34 Mercenary destroyed. Map ----- +----------------------------------------------------+ | | | | | | | | | ??????????????????????????????????????????????? | | ???????????????????????###????????????????????? | | ???????????????????#### ##???????????????????? | | ??????????????????## ???????????#??#????? | | ?????????????????## ! ???????????# ?? #???? | | ????????????????## ???????????# ??? #??? | | ????????????????# #??????????? ???? ### | | ????????????????# % #??????????? ????? | | ????????????????# = ##?????????? ?????? | | ????????????????# | ##????????? ??????# | | ???????????????## #????????? ??????# | | ??????????????## #########? ???????# | | ??????????????# == *= #?# #???????# | | ??????????????#* [######## #?# ######### | | ?????????????# ## ##??????# #?# ## | | ?????????????# #### #???????# ### ## ###### | | ?????????????## #???# #???????# ## #????# | | ??????????????###???## #####???##### ## #???## | | ????????????????????# #???????# #???# | | ???????????????###??# #???????#### #??## | | ???????????????#"!### #??????##### #### | | ???????????????#"!$!#X@ #??????# ## | | ???????????????#"[ #??????# | | ???????????????#"! #???#### ## | | ???????????????#"! !#g #???# ### | | ???????????????#"/###g #???# #?### | | ???????????????###??#=%[ #???# #####???## | | ????????????????????# %* #???# #????????# | | ????????????????????# #???# #????????## | | ????????????????????# #???# #?????????## | | ?????????????? ???# < #???# #??????????## | | ??????????????# ??# #???# #????######## | | ??????????????# ?#########???# #????# | | ??????????????? #????????????# #????# """ | | ???????????????? ##??????????# #????# """ | | ????????????????? #?????????# #????# """ | | ?????????????????""" #????????# #????# | | ??????????? ? """ #???????# #????##### ## | | ??????????? """ ######## #????????# | | ?????????????# #####????# ## | | ??????????????# #????# #? | | ??????????????# ## ########### #????# ## | | ???????????????????????# #?????????# #???## # | | ???????????????????????# #?????????# #???# | | ???????###?????????????# #?????????# ##### | | ??????## #????????????# #?????????# | +----------------------------------------------------+ Best States ------------- Heat Dissipation 35 Energy Generation 10 Energy Capacity 250 Matter Stores 270 Matter Capacity 300 Sight Range 16 Robot Scan Range 14 Terrain Scan Range 14 Terrain Scan Density 10 ECM Strength 1 Weapon Shielding 33 Evasion (%) 55 Item Schematics ----------------- None Robot Schematics ------------------ None Fabricated ------------ Nothing Alien Tech Used ----------------- None Achievements -------------- Everything Is Under Control One Hack Too Far Challenges ------------ None Game ------ Seed CoolantDeliveryCloak Manual? 0 Play Time 00:18:22 Cumulative 3.6 hours Start 2024.04.08 @ 23:20:57 End 2024.04.08 @ 23:37:29 Sessions 1 Manual Loads 0 Difficulty Rogue Special Mode None Game No. 5 Rogue 5 Adventurer 0 Explorer 0 Win Type - Total 0 Types 0/0/0/0/0/0/0/0/0 Lore% 1 Gallery% 7 Achievement% 5 Wizard Run 0 Options --------- Layout 1 ASCII 0 Keyboard 0 Movement Arrows Keybinds 0 Fullscreen 1 Font 32/SmallcapsGlow Map View 50x35 Zoom Use 0% Tactical HUD 0 Map Filters NONE Filters NONE Steam 1 RUN: d5f5d97f-bb8f-41d9-8bd4-2b2c82e72684